bitfinex/quotes_BTCUSD_20250618
["timestamp","ask_amount","ask_price","bid_price","bid_amount"]
[1750273438134,0.38699715,103920.0,103910.0,0.50452926]
[1750273438346,0.3763752,103920.0,103910.0,0.50452926]
[1750273438550,0.3763752,103920.0,103910.0,0.50552926]
[1750273438956,0.38599733,103920.0,103910.0,0.50552926]
[1750273439173,0.3763752,103920.0,103910.0,0.50552926]
[1750273439395,0.3763752,103920.0,103910.0,0.50652926]
[1750273439798,0.3763752,103920.0,103910.0,0.53802926]
[1750273440007,0.08174437,103930.0,103910.0,0.47765907]
[1750273440219,0.42174427,103930.0,103920.0,0.22132296]
[1750273440436,0.7692552,103930.0,103920.0,0.22132296]
[1750273440668,0.34,103930.0,103920.0,0.22132296]
[1750273440917,0.7692552,103930.0,103920.0,0.31756472]
[1750273441145,0.97131408,103930.0,103920.0,0.17724]
[1750273441449,1.38028928,103930.0,103920.0,0.38894111]
[1750273441651,1.01253547,103930.0,103920.0,0.24056797]
[1750273441920,0.73661771,103930.0,103920.0,0.41780797]
[1750273442141,0.7702552,103930.0,103920.0,0.41780797]
[1750273442780,0.4302552,103930.0,103920.0,0.51404973]
[1750273443002,0.4302552,103930.0,103920.0,0.54604973]
[1750273443252,0.4302552,103930.0,103920.0,0.51404973]
[1750273444321,0.66117761,103930.0,103920.0,0.21170111]
[1750273444552,0.44949771,103930.0,103920.0,0.24056815]
[1750273444746,0.44949771,103930.0,103920.0,0.41780815]
[1750273444957,0.001,103930.0,103920.0,0.51404991]
[1750273445193,0.4302552,103930.0,103920.0,0.51404991]
[1750273445613,0.4302552,103930.0,103920.0,0.54524991]
[1750273445614,0.001,103930.0,103920.0,0.54524991]
[1750273445825,0.001,103930.0,103920.0,0.57784991]
[1750273446493,0.00111,103950.0,103940.0,0.22128038]
[1750273446704,0.00111,103950.0,103940.0,1.04030965]
[1750273446705,0.00125166,103950.0,103940.0,1.04030965]
[1750273447139,0.00125166,103950.0,103940.0,0.66393445]
[1750273447347,0.00125166,103950.0,103940.0,0.66389445]
[1750273447772,0.01325166,103950.0,103940.0,0.66489445]
[1750273447986,0.01325166,103950.0,103940.0,0.63647619]
[1750273448197,0.00125166,103950.0,103940.0,0.38162214]
[1750273448420,0.71762686,103950.0,103940.0,0.10424176]
[1750273448632,0.71762686,103950.0,103940.0,0.28144176]
[1750273449125,0.77050686,103950.0,103940.0,0.28144176]
[1750273449551,0.71762686,103950.0,103940.0,0.28144176]
[1750273449765,0.77250686,103950.0,103940.0,0.27344176]
[1750273449972,0.77250686,103950.0,103940.0,0.10024176]
[1750273450191,0.77250686,103950.0,103940.0,0.004]
[1750273450192,0.77050686,103950.0,103940.0,0.004]
[1750273450410,0.80070686,103950.0,103940.0,0.1812]
[1750273450616,0.80070686,103950.0,103940.0,0.1842]
[1750273451040,0.80070686,103950.0,103940.0,0.004]
[1750273451256,0.83115686,103950.0,103940.0,0.1772]
[1750273451468,0.83115686,103950.0,103940.0,0.1782]
[1750273451469,0.45358,103950.0,103940.0,0.1782]
[1750273451685,0.7994552,103950.0,103940.0,0.003]
[1750273452100,0.7969352,103950.0,103940.0,0.003]
[1750273452715,0.8258502,103950.0,103940.0,0.003]
[1750273452938,0.8563502,103950.0,103940.0,0.003]
[1750273453144,0.8258502,103950.0,103940.0,0.003]
[1750273453348,0.4883702,103950.0,103930.0,0.1772]
[1750273453557,0.37938228,103940.0,103930.0,0.1782]
[1750273453758,0.4292552,103940.0,103930.0,0.1782]
[1750273453960,0.7692552,103940.0,103930.0,0.1782]
[1750273454613,0.7163752,103940.0,103930.0,0.1782]
[1750273454840,0.7692552,103940.0,103930.0,0.1782]
[1750273455047,0.7692552,103940.0,103930.0,0.17816]
[1750273456346,0.39288,103940.0,103930.0,1.17816]
[1750273456548,0.7692552,103940.0,103930.0,1.17816]
[1750273457053,0.7163752,103940.0,103930.0,1.17816]
[1750273457285,0.05293,103960.0,103930.0,1.33820176]
[1750273457498,0.4293052,103960.0,103940.0,0.20599581]
[1750273457711,0.3763752,103950.0,103940.0,0.12934176]
[1750273457931,0.3763752,103950.0,103940.0,0.27340176]
[1750273458359,0.7693052,103960.0,103940.0,0.30640176]
[1750273458585,0.7713052,103960.0,103940.0,0.30640176]
[1750273458792,0.7693052,103960.0,103940.0,0.30640176]
[1750273459212,0.7693052,103960.0,103940.0,0.30840176]
[1750273459704,0.37938182,103950.0,103940.0,0.27540176]
[1750273459909,0.3763752,103950.0,103940.0,0.27540176]
[1750273460475,0.3763752,103950.0,103940.0,0.4850613]
[1750273460675,0.3763752,103950.0,103940.0,0.4860613]
[1750273461672,0.3763752,103950.0,103940.0,0.4880613]
[1750273462229,0.39293,103960.0,103950.0,0.22125909]
[1750273462438,0.7693052,103960.0,103950.0,0.22125909]
[1750273462645,0.78854216,103960.0,103950.0,0.22125909]
[1750273462856,0.40254834,103960.0,103950.0,0.39833909]
[1750273463061,0.77892345,103960.0,103950.0,0.39833909]
[1750273463271,0.7693052,103960.0,103950.0,0.39833909]
[1750273463927,0.79816105,103960.0,103950.0,0.39833909]
[1750273464135,0.78854206,103960.0,103950.0,0.39933909]
[1750273464359,0.77892354,103960.0,103950.0,0.39933909]
[1750273464812,0.79816068,103960.0,103950.0,0.39933909]
[1750273465072,1.39851867,103960.0,103950.0,0.21263992]
[1750273465323,1.44485952,103960.0,103950.0,0.001]
[1750273465586,1.44485952,103960.0,103950.0,0.21263973]
[1750273465813,1.17453588,103960.0,103950.0,0.39933909]
[1750273466031,0.42178548,103960.0,103950.0,0.39933909]
[1750273466259,0.3764252,103960.0,103950.0,0.39933909]
[1750273466487,0.4291852,103960.0,103950.0,0.39933909]
[1750273466706,0.00205,103960.0,103950.0,0.49558085]
[1750273466942,0.77419154,103960.0,103950.0,0.49558085]
[1750273467167,0.4291852,103960.0,103950.0,0.49558085]
[1750273467393,0.4311852,103960.0,103950.0,0.49558085]
[1750273467618,5e-05,103960.0,103950.0,0.55958085]
[1750273468109,5e-05,103960.0,103950.0,0.56158085]
[1750273468315,5e-05,103960.0,103950.0,0.56258085]
[1750273468525,0.00305618,103960.0,103950.0,0.56258085]
[1750273468742,0.00305618,103960.0,103950.0,0.56058085]
[1750273469383,0.00305618,103960.0,103950.0,0.55958085]
[1750273469588,0.00305618,103960.0,103950.0,0.55954085]
[1750273469792,0.00305618,103960.0,103950.0,0.56254085]
[1750273470215,0.00305618,103960.0,103950.0,0.56654085]
[1750273470474,5e-05,103960.0,103950.0,0.56654085]
[1750273472219,0.00305609,103960.0,103950.0,0.56654085]
[1750273472429,0.00305609,103960.0,103950.0,0.56650085]
[1750273472638,0.37943129,103960.0,103950.0,0.32550085]
[1750273472843,0.3764252,103960.0,103950.0,0.50250085]
[1750273473600,0.3764252,103960.0,103950.0,0.32550085]
[1750273473812,0.3764252,103960.0,103950.0,0.50250085]
[1750273474259,5e-05,103960.0,103950.0,0.53300085]
[1750273474601,0.3764252,103960.0,103950.0,0.50250085]
[1750273474821,0.3764252,103960.0,103950.0,0.50246085]
[1750273475227,0.3764252,103960.0,103950.0,0.32550085]
[1750273475435,1.34898208,103960.0,103950.0,0.008]
[1750273475654,1.41628293,103960.0,103950.0,0.008]
[1750273475868,1.51252469,103960.0,103950.0,0.008]
[1750273476281,1.51252469,103960.0,103950.0,0.005]
[1750273476516,1.51252469,103960.0,103950.0,0.001]
[1750273476783,1.51452469,103960.0,103950.0,0.002]
[1750273477270,0.76177429,103960.0,103950.0,0.001]
[1750273477481,1.51652469,103960.0,103950.0,0.001]
[1750273477888,1.49267869,103960.0,103950.0,0.19340019]
[1750273478102,1.45881601,103960.0,103950.0,0.001]
[1750273478537,1.45881601,103960.0,103950.0,0.20302019]
[1750273478746,1.45881601,103960.0,103950.0,0.21263992]
[1750273478955,1.40605601,103960.0,103950.0,0.21263992]
[1750273479162,1.45881601,103960.0,103950.0,0.21263992]
[1750273479594,1.45881601,103960.0,103950.0,0.20302019]
[1750273479805,1.40605601,103960.0,103950.0,0.2126401]
[1750273480168,1.45881601,103960.0,103950.0,0.22225992]
[1750273480372,1.45881601,103960.0,103950.0,0.001]
[1750273480529,1.45881601,103960.0,103950.0,0.21263992]
[1750273480958,1.42661601,103960.0,103950.0,0.20302019]
[1750273481115,1.42661601,103960.0,103950.0,0.2126401]
[1750273481318,1.35156116,103960.0,103950.0,0.22225973]
[1750273481523,1.35156116,103960.0,103950.0,0.22225992]
[1750273481764,1.35156116,103960.0,103950.0,0.23187965]
[1750273482013,1.16879745,103960.0,103950.0,0.23187965]
[1750273482159,0.79242207,103960.0,103950.0,0.24149864]
[1750273482372,0.73966197,103960.0,103950.0,0.41841864]
[1750273482576,0.00405,103960.0,103950.0,0.5146604]
[1750273482779,0.00705632,103960.0,103950.0,1.5450604]
[1750273482983,0.00705632,103960.0,103950.0,1.5779604]
[1750273483439,0.00405,103960.0,103950.0,1.5779604]
[1750273483641,0.00205,103960.0,103950.0,1.5779604]
[1750273484054,5e-05,103960.0,103950.0,1.5779604]
[1750273484267,0.3764252,103960.0,103950.0,1.5779604]
[1750273484655,0.19646673,103960.0,103950.0,1.5779604]
[1750273484862,0.7691852,103970.0,103960.0,0.22123781]
[1750273485065,0.7691852,103970.0,103960.0,0.31747957]
[1750273486562,0.7711852,103970.0,103960.0,0.31747957]
[1750273486772,0.80965587,103970.0,103960.0,0.39807799]
[1750273487006,0.78280261,103970.0,103960.0,0.40769642]
[1750273487474,0.79242021,103970.0,103960.0,0.40769642]
[1750273487908,0.81165605,103970.0,103960.0,0.39807799]
[1750273488076,0.81165587,103970.0,103960.0,0.40769642]
[1750273488308,0.79242021,103970.0,103960.0,0.40769642]
[1750273488653,0.80203799,103970.0,103960.0,0.40769642]
[1750273488865,0.78280261,103970.0,103960.0,0.40769642]
[1750273489084,0.7731852,103970.0,103960.0,0.40769642]
[1750273489710,0.8020379,103970.0,103960.0,0.40769642]
[1750273489926,0.79242012,103970.0,103960.0,0.40769642]
[1750273490145,0.78280261,103970.0,103960.0,0.40769642]
[1750273490358,0.80203781,103970.0,103960.0,0.40769642]
[1750273490570,0.79242012,103970.0,103960.0,0.40769642]
[1750273490960,0.7204252,103970.0,103960.0,0.40769642]
[1750273491174,0.39681,103970.0,103960.0,0.40769642]
[1750273491385,0.7731852,103970.0,103960.0,0.40769642]
[1750273491604,0.34405,103970.0,103960.0,0.50393818]
[1750273491819,0.34405,103970.0,103960.0,0.64459223]
[1750273491820,0.00405,103970.0,103960.0,0.64459223]
[1750273492502,0.002,103970.0,103960.0,1.72310828]
[1750273493377,5e-05,103980.0,103970.0,0.28401653]
[1750273493625,5e-05,103980.0,103970.0,1.40877434]
[1750273493830,0.0158594,103990.0,103980.0,1.01511131]
[1750273494047,0.0158594,103990.0,103980.0,1.28811307]
[1750273494578,0.0158594,103990.0,103980.0,1.11135307]
[1750273494791,0.01600103,103990.0,103980.0,0.73497787]
[1750273494998,0.01600103,103990.0,103980.0,0.91173787]
[1750273495834,0.01600103,103990.0,103980.0,1.28811307]
[1750273496464,0.01005,104000.0,103990.0,0.0647]
[1750273496681,0.01005,104000.0,103990.0,0.38211574]
[1750273496892,0.01005,104000.0,103990.0,0.72211574]
[1750273497101,0.01005,104000.0,103990.0,1.27521094]
[1750273497745,0.01005,104000.0,103990.0,1.09849094]
[1750273497958,0.01005,104000.0,103990.0,0.89879574]
[1750273498173,0.01005,104000.0,103990.0,1.72408699]
[1750273498392,5e-05,104010.0,104000.0,0.61115272]
[1750273498615,5e-05,104010.0,104000.0,1.64985893]
[1750273499695,0.00105,104010.0,104000.0,1.64985893]
[1750273500150,5e-05,104020.0,104010.0,0.72567231]
[1750273500395,5e-05,104050.0,104040.0,0.28656769]
[1750273500618,5e-05,104050.0,104040.0,1.6667407]
[1750273500619,0.0005223,104050.0,104040.0,1.6667407]
[1750273501079,0.0005223,104050.0,104040.0,1.7167407]
[1750273501293,0.0159194,104090.0,104080.0,0.22098273]
[1750273501515,0.01606105,104090.0,104080.0,0.93389969]
[1750273502212,0.01606105,104090.0,104080.0,1.70027489]
[1750273502490,0.01606105,104090.0,104080.0,1.75160687]
[1750273502716,0.01106105,104090.0,104080.0,1.76614772]
[1750273503169,0.01206105,104090.0,104080.0,1.76614772]
[1750273503398,0.01206105,104090.0,104080.0,1.01339732]
[1750273503618,5e-05,104110.0,104100.0,0.62564027]
[1750273503840,5e-05,104110.0,104100.0,0.89844203]
[1750273504056,5e-05,104110.0,104100.0,1.27481723]
[1750273504316,5e-05,104110.0,104100.0,0.89844203]
[1750273504538,5e-05,104110.0,104100.0,1.27481723]
[1750273504752,5e-05,104110.0,104100.0,0.89840203]
[1750273505182,5e-05,104110.0,104100.0,1.28931808]
[1750273505629,5e-05,104110.0,104100.0,0.74042288]
[1750273505843,5e-05,104110.0,104100.0,0.49766203]
[1750273506325,5e-05,104110.0,104100.0,0.32118203]
[1750273506555,5e-05,104110.0,104100.0,0.50166203]
[1750273507508,5e-05,104110.0,104100.0,0.32518203]
[1750273507733,5e-05,104110.0,104100.0,0.50162203]
[1750273508218,5e-05,104110.0,104100.0,0.32518203]
[1750273508447,5e-05,104110.0,104100.0,0.50162203]
[1750273508690,5e-05,104110.0,104100.0,1.50162203]
[1750273509617,5e-05,104110.0,104100.0,1.32518203]
[1750273509854,5e-05,104110.0,104100.0,1.50162203]
[1750273510078,5e-05,104110.0,104100.0,1.32518203]
[1750273510343,5e-05,104110.0,104100.0,1.50158203]
[1750273510571,5e-05,104110.0,104100.0,1.50151869]
[1750273510797,5e-05,104110.0,104100.0,1.32511869]
[1750273511015,5e-05,104110.0,104100.0,1.49751869]
[1750273511221,5e-05,104110.0,104100.0,1.49951869]
[1750273511441,5e-05,104110.0,104100.0,1.49551869]
[1750273512468,5e-05,104110.0,104100.0,1.49851869]
[1750273512954,5e-05,104110.0,104100.0,1.32211869]
[1750273513160,5e-05,104110.0,104100.0,1.49851869]
[1750273513371,5e-05,104110.0,104100.0,1.32211869]
[1750273513577,5e-05,104110.0,104100.0,1.49851869]
[1750273514670,0.0030518,104110.0,104100.0,1.32211869]
[1750273514876,0.0030518,104110.0,104100.0,1.49851869]
[1750273515510,5e-05,104110.0,104100.0,1.49851869]
[1750273515708,0.00305187,104110.0,104100.0,1.49851869]
[1750273515944,5e-05,104110.0,104100.0,1.49851869]
[1750273516149,5e-05,104110.0,104100.0,1.32211869]
[1750273516354,5e-05,104110.0,104100.0,1.49847869]
[1750273516984,0.0030518,104110.0,104100.0,1.49847869]
[1750273518025,5e-05,104110.0,104100.0,1.49847869]
[1750273518461,5e-05,104110.0,104100.0,1.53017869]
[1750273518666,5e-05,104110.0,104100.0,1.49847869]
[1750273519328,5e-05,104110.0,104100.0,1.49899869]
[1750273519543,5e-05,104110.0,104100.0,1.32211869]
[1750273519750,0.06245,104110.0,104100.0,1.49659869]
[1750273519965,0.44182717,104110.0,104100.0,1.49659869]
[1750273520181,0.06245,104110.0,104100.0,1.49659869]
[1750273520407,0.03415197,104110.0,104100.0,1.49659869]
[1750273520835,0.00305197,104110.0,104100.0,1.49671869]
[1750273521248,5e-05,104110.0,104100.0,1.49671869]
[1750273523384,0.00305174,104110.0,104100.0,1.49671869]
[1750273523596,5e-05,104110.0,104100.0,1.49671869]
[1750273524263,0.3764252,104110.0,104100.0,1.31959869]
[1750273524481,5e-05,104110.0,104100.0,1.49647869]
[1750273524716,5e-05,104110.0,104100.0,1.31959869]
[1750273524924,5e-05,104110.0,104100.0,1.49647869]
[1750273525382,0.00305197,104110.0,104100.0,1.31959869]
[1750273525657,5e-05,104110.0,104100.0,1.49355869]
[1750273526073,0.00305197,104110.0,104100.0,1.49355869]
[1750273526291,5e-05,104110.0,104100.0,1.49355869]
[1750273526506,0.0528,104130.0,104120.0,0.22089784]
[1750273526718,0.05294149,104130.0,104120.0,0.4940196]
[1750273527139,0.05594293,104130.0,104120.0,0.4940196]
[1750273527562,0.05594293,104130.0,104120.0,0.48441595]
[1750273527985,0.44241813,104130.0,104120.0,0.4939796]
[1750273528205,0.44241813,104130.0,104120.0,0.19208605]
[1750273528206,0.46822516,104130.0,104120.0,0.19208605]
[1750273528416,0.66989614,104130.0,104120.0,0.37551638]
[1750273528627,0.08370739,104120.0,104110.0,0.22091794]
[1750273528834,0.46008259,104120.0,104110.0,0.39759794]
[1750273529039,0.4936752,104120.0,104110.0,0.39759794]
[1750273529460,0.4613752,104120.0,104110.0,0.22091794]
[1750273529671,0.085,104120.0,104110.0,0.39755794]
[1750273529885,0.08800177,104120.0,104110.0,0.39755794]
[1750273530297,0.08800177,104120.0,104110.0,0.39955794]
[1750273530719,0.03520177,104120.0,104110.0,0.39955794]
[1750273531157,0.03520177,104120.0,104110.0,0.22291794]
[1750273531374,0.44357697,104120.0,104110.0,0.39927794]
[1750273531590,0.05294149,104130.0,104120.0,0.22089784]
[1750273531591,0.43951669,104130.0,104120.0,0.22089784]
[1750273531840,0.05294149,104130.0,104120.0,0.22089784]
[1750273532053,0.43231828,104130.0,104120.0,0.22089784]
[1750273532262,0.42931669,104130.0,104120.0,0.3171396]
[1750273533198,0.002,104130.0,104120.0,0.3171396]
[1750273533637,0.00500137,104130.0,104120.0,0.3171396]
[1750273534325,0.44837873,104140.0,104130.0,0.21127389]
[1750273534558,0.01920574,104130.0,104120.0,0.22089692]
[1750273534809,0.3763752,104130.0,104120.0,0.39925692]
[1750273535042,0.0528,104140.0,104130.0,0.22087662]
[1750273535269,0.07200389,104140.0,104130.0,0.22087662]
[1750273535495,0.44837909,104140.0,104130.0,0.22087662]
[1750273535729,0.43877701,104140.0,104130.0,0.22087662]
[1750273535948,0.45798118,104140.0,104130.0,0.22087662]
[1750273536164,0.449379,104140.0,104130.0,0.22087662]
[1750273536393,0.43977701,104140.0,104130.0,0.22087662]
[1750273536889,0.3773752,104140.0,104130.0,0.22087662]
[1750273537119,0.3773752,104140.0,104130.0,0.31711838]
[1750273537120,0.001,104140.0,104130.0,0.31711838]
[1750273537339,0.7787759,104150.0,104140.0,0.22085541]
[1750273537340,0.77837787,104150.0,104140.0,0.22085541]
[1750273537566,1.02201101,104150.0,104140.0,0.36863951]
[1750273537792,1.02590845,104150.0,104140.0,0.36840916]
[1750273538020,1.02590845,104150.0,104140.0,0.38761342]
[1750273538295,1.02590845,104150.0,104140.0,0.37801143]
[1750273538507,1.04511105,104150.0,104140.0,0.36840916]
[1750273538729,1.04511105,104150.0,104140.0,0.38761397]
[1750273538945,1.04611105,104150.0,104140.0,0.40681823]
[1750273539158,1.04611105,104150.0,104140.0,0.36840916]
[1750273539375,1.03650998,104150.0,104140.0,0.36840916]
[1750273539591,1.03650998,104150.0,104140.0,0.38761361]
[1750273539778,1.03650998,104150.0,104140.0,0.40681805]
[1750273539983,1.03650998,104150.0,104140.0,0.37801152]
[1750273540189,1.03650998,104150.0,104140.0,0.39721578]
[1750273540848,1.02690863,104150.0,104140.0,0.21125379]
[1750273541056,1.02690863,104150.0,104140.0,0.20165161]
[1750273541057,1.0173071,104150.0,104140.0,0.20165161]
[1750273541275,1.0173071,104150.0,104140.0,0.21125397]
[1750273541406,0.00960199,104140.0,104130.0,0.38763315]
[1750273541763,0.6710326,104140.0,104130.0,0.20167079]
[1750273541985,0.72383324,104140.0,104130.0,0.38763389]
[1750273542181,0.72383324,104140.0,104130.0,0.3972369]
[1750273542603,0.72483324,104140.0,104130.0,0.3972369]
[1750273542762,0.72483324,104140.0,104130.0,0.40683963]
[1750273543168,0.23047982,104130.0,104120.0,0.21129446]
[1750273543391,0.67105502,104130.0,104120.0,0.39725848]
[1750273543667,0.27547408,104130.0,104110.0,0.20170907]
[1750273543876,0.65007276,104120.0,104110.0,0.21145597]
[1750273544085,0.6404692,104120.0,104110.0,0.37821112]
[1750273544293,0.45798736,104120.0,104110.0,0.41663052]
[1750273544496,0.68007341,104120.0,104110.0,0.40702595]
[1750273544754,0.48798662,104120.0,104110.0,0.41663052]
[1750273544932,0.4783826,104120.0,104110.0,0.41663052]
[1750273545176,0.45798634,104120.0,104110.0,0.41663052]
[1750273546016,0.0538,104120.0,104110.0,0.41663052]
[1750273546231,0.06340356,104120.0,104110.0,0.41663052]
[1750273546451,0.0538,104120.0,104110.0,0.41663052]
[1750273546657,0.44938241,104120.0,104110.0,0.41763052]
[1750273546863,0.6606766,104120.0,104110.0,0.40802595]
[1750273547079,0.66067743,104120.0,104110.0,0.3984211]
[1750273547286,0.45898698,104120.0,104110.0,0.41763034]
[1750273547494,0.65107303,104120.0,104110.0,0.3984211]
[1750273547703,0.65107303,104120.0,104110.0,0.40802586]
[1750273547915,0.46978698,104120.0,104110.0,0.41763053]
[1750273548129,0.44938241,104120.0,104110.0,0.41762997]
[1750273548384,1.0814444,104120.0,104110.0,0.37921121]
[1750273548597,1.42638141,104120.0,104110.0,0.00114149]
[1750273548813,1.57262317,104120.0,104110.0,0.00114149]
[1750273549016,1.19624797,104120.0,104110.0,0.00114149]
[1750273549227,1.57262317,104120.0,104110.0,0.00114149]
[1750273549432,1.74898317,104120.0,104110.0,0.00114149]
[1750273550084,5.85884817,104120.0,104110.0,0.00114149]
[1750273550298,5.85884817,104120.0,104100.0,0.49581601]
[1750273550299,4.78111539,104110.0,104100.0,0.49581601]
[1750273550511,0.21139552,104070.0,104060.0,0.20190664]
[1750273550722,0.64057072,104070.0,104060.0,0.21165785]
[1750273550963,0.68635354,104070.0,104060.0,0.00024165]
[1750273551144,0.68635354,104070.0,104060.0,0.21165785]
[1750273551581,0.65395354,104070.0,104060.0,0.22126732]
[1750273551791,0.63096227,104070.0,104060.0,0.22126732]
[1750273551994,0.64057072,104070.0,104060.0,0.23087669]
[1750273552243,0.65017963,104070.0,104060.0,0.22126732]
[1750273552683,0.65711203,104070.0,104060.0,0.00024165]
[1750273552890,0.72041203,104070.0,104060.0,0.00024165]
[1750273553489,0.72141203,104070.0,104060.0,0.00024165]
[1750273553763,1.23646845,104070.0,104060.0,0.00024165]
[1750273553997,1.0438225,104060.0,104050.0,0.0001]
[1750273554211,5.62630446,104060.0,104050.0,0.0001]
[1750273554426,1.38394772,104040.0,104030.0,0.0001]
[1750273554641,1.38741428,104040.0,104030.0,0.20196484]
[1750273554860,0.55145647,104040.0,104030.0,0.22118931]
[1750273555065,0.55145647,104040.0,104030.0,0.23080127]
[1750273555066,0.42123366,104040.0,104030.0,0.23080127]
[1750273555275,0.98984326,104040.0,104030.0,0.21157735]
[1750273555479,0.98984326,104040.0,104030.0,0.0001]
[1750273555480,0.99477289,104040.0,104030.0,0.0001]
[1750273555694,0.9755498,104040.0,104030.0,0.0001]
[1750273555903,0.9755498,104040.0,104030.0,0.19235223]
[1750273556153,0.9765498,104040.0,104030.0,0.0001]
[1750273556362,1.13569156,104040.0,104030.0,0.0001]
[1750273556586,1.18569156,104040.0,104030.0,0.0001]
[1750273556795,1.18669156,104040.0,104030.0,0.0001]
[1750273557211,0.69501636,104040.0,104030.0,0.19235223]
[1750273557437,1.12379156,104040.0,104030.0,0.20196465]
[1750273557638,1.07379156,104040.0,104030.0,0.21157689]
[1750273558069,1.07379156,104040.0,104030.0,0.19235223]
[1750273558274,0.74741636,104040.0,104030.0,0.00971261]
[1750273558485,1.12379156,104040.0,104030.0,0.00971261]
[1750273558722,1.12379156,104040.0,104030.0,0.0001]
[1750273558931,1.15275025,104040.0,104030.0,0.0001]
[1750273559364,1.18575025,104040.0,104030.0,0.0001]
[1750273559570,1.21665025,104040.0,104030.0,0.0001]
[1750273559784,1.2352796,104040.0,104030.0,0.0001]
[1750273560206,1.21665025,104040.0,104030.0,0.0001]
[1750273560639,1.15275025,104040.0,104030.0,0.21157717]
[1750273560854,0.3944,104040.0,104030.0,0.23080137]
[1750273561068,0.002,104040.0,104030.0,0.29580137]
[1750273561274,0.01161085,104040.0,104030.0,0.29580137]
[1750273561478,0.002,104040.0,104030.0,0.29580137]
[1750273561899,0.002,104040.0,104030.0,0.39204313]
[1750273562741,0.001,104040.0,104030.0,0.39204313]
[1750273563168,0.001,104040.0,104030.0,0.76841833]
[1750273563384,0.00974939,104070.0,104060.0,0.0288284]
[1750273563597,0.05254131,104070.0,104060.0,0.4603252]
[1750273563887,0.06214958,104070.0,104060.0,0.4603252]
[1750273564096,0.05254131,104070.0,104060.0,0.4603252]
[1750273564512,0.06214939,104070.0,104060.0,0.4603252]
[1750273564716,0.07175766,104070.0,104060.0,0.4603252]
[1750273564936,0.263936,104070.0,104060.0,0.44210654]
[1750273565134,0.263936,104070.0,104060.0,0.40803457]
[1750273565135,0.09097484,104070.0,104060.0,0.40803457]
[1750273565342,0.10058348,104070.0,104060.0,0.40803457]
[1750273565553,0.10058422,104070.0,104060.0,0.40803457]
[1750273565757,0.08136667,104070.0,104060.0,0.40803457]
[1750273565944,0.05254131,104070.0,104060.0,0.40803457]
[1750273566230,0.08136666,104070.0,104060.0,0.40903457]
[1750273566664,0.05254131,104070.0,104060.0,0.40903457]
[1750273566839,0.06214948,104070.0,104060.0,0.40903457]
[1750273567044,0.05254131,104070.0,104060.0,0.40903457]
[1750273567206,0.05254131,104070.0,104060.0,0.47273457]
[1750273567792,0.06214939,104070.0,104060.0,0.47273457]
[1750273567996,0.00014131,104070.0,104060.0,0.39257633]
[1750273568196,0.00014131,104070.0,104060.0,0.53587633]
[1750273568395,0.00014131,104070.0,104060.0,0.50527633]
[1750273568684,0.22114473,104070.0,104060.0,0.22302538]
[1750273568910,0.94245307,104070.0,104060.0,0.002]
[1750273569107,0.35935831,104070.0,104060.0,0.2230252]
[1750273569314,0.41175831,104070.0,104060.0,0.2230252]
[1750273569486,0.41175775,104070.0,104060.0,0.2230252]
[1750273569823,0.43097502,104070.0,104060.0,0.2230252]
[1750273570031,0.05254131,104070.0,104060.0,0.4312252]
[1750273570266,0.00014131,104070.0,104060.0,0.55766696]
[1750273571515,0.00014131,104070.0,104060.0,0.55757896]
[1750273571705,0.00974958,104070.0,104060.0,0.3993372]
[1750273571921,0.05254131,104070.0,104060.0,0.4317372]
[1750273572084,0.05254131,104070.0,104060.0,0.55997896]
[1750273572661,0.00014131,104070.0,104060.0,0.55997896]
[1750273574061,0.00974939,104070.0,104060.0,0.55997896]
[1750273574263,0.00014131,104070.0,104060.0,0.55997896]
[1750273575868,0.01935775,104070.0,104060.0,0.3644003]
[1750273576089,0.23075327,104070.0,104060.0,0.48596977]
[1750273576305,0.23075327,104070.0,104060.0,0.001952]
[1750273576306,0.92791203,104070.0,104060.0,0.001952]
[1750273576529,0.98031203,104070.0,104060.0,0.001952]
[1750273577368,0.98031203,104070.0,104060.0,0.20375864]
[1750273577575,0.60393683,104070.0,104060.0,0.21336829]
[1750273578625,0.59432838,104070.0,104060.0,0.20375864]
[1750273578902,0.59432838,104070.0,104060.0,0.001952]
[1750273578903,0.96109485,104070.0,104060.0,0.001952]
[1750273579227,0.5992605,104070.0,104060.0,0.001952]
[1750273579475,0.56607814,104070.0,104060.0,0.20375845]
[1750273579711,0.99485334,104070.0,104060.0,0.001952]
[1750273579948,1.28331899,104070.0,104060.0,0.001952]
[1750273580874,1.2024951,104070.0,104060.0,0.001952]
[1750273581993,5.3123601,104070.0,104060.0,0.001952]
[1750273582221,0.8261199,104070.0,104060.0,0.001952]
[1750273582451,1.2024951,104070.0,104060.0,0.001952]
[1750273583412,5.3123601,104070.0,104060.0,0.001952]
[1750273583641,5.40850932,104070.0,104060.0,0.001952]
[1750273583872,5.40850932,104070.0,104060.0,0.001]
[1750273584096,0.03844489,104040.0,104030.0,0.23079915]
[1750273584322,0.29269023,104040.0,104030.0,0.23079915]
[1750273584572,0.07162198,104040.0,104030.0,0.23079915]
[1750273584808,0.76157746,104070.0,104040.0,0.23344479]
[1750273585040,0.5575372,104070.0,104060.0,0.20180654]
[1750273585265,0.6128572,104070.0,104060.0,0.21141619]
[1750273585507,0.6068572,104070.0,104060.0,0.22102575]
[1750273585738,0.00314131,104070.0,104060.0,0.24024441]
[1750273585967,0.2956819,104070.0,104060.0,0.27184441]
[1750273586189,0.6356819,104070.0,104060.0,0.27184441]
[1750273586409,0.44050356,104070.0,104060.0,0.27184441]
[1750273586638,0.44050439,104070.0,104060.0,0.27184441]
[1750273586884,0.42428657,104070.0,104060.0,0.27184441]
[1750273587101,0.42428657,104070.0,104060.0,0.26223522]
[1750273587102,0.62607364,104070.0,104060.0,0.26223522]
[1750273587311,0.61646584,104070.0,104060.0,0.25262575]
[1750273587546,0.59924847,104070.0,104060.0,0.20180664]
[1750273587778,0.59924847,104070.0,104050.0,0.24441848]
[1750273587779,0.01921847,104060.0,104050.0,0.24441848]
[1750273588010,0.79305369,104070.0,104060.0,0.21141601]
[1750273588227,0.615945,104070.0,104060.0,0.20180654]
[1750273588463,0.615945,104070.0,104060.0,0.1921968]
[1750273588464,0.60633683,104070.0,104060.0,0.1921968]
[1750273588700,0.01921903,104060.0,104050.0,0.25402923]
[1750273588933,0.0096091,104060.0,104050.0,0.25402877]
[1750273589174,0.02882757,104060.0,104050.0,0.25402877]
[1750273589447,0.22102567,104060.0,104050.0,0.2114194]
[1750273589682,0.01921903,104060.0,104050.0,0.2306399]
[1750273589897,0.01921866,104060.0,104050.0,0.22102979]
[1750273590110,0.02882812,104060.0,104050.0,0.2306399]
[1750273590320,0.02121856,104060.0,104050.0,0.2306399]
[1750273590554,0.01160919,104060.0,104050.0,0.2306399]
[1750273590770,0.002,104060.0,104050.0,0.2949399]
[1750273591000,0.02121847,104060.0,104050.0,0.2619399]